fUST/lending_fUST_20240926
["ID","MTS","AMOUNT","RATE_DAILY","PERIOD"]
[339208680,1727327447156,-337.86099682,0.00016029,2]
[339208681,1727327447165,-3000.0,0.0001603,2]
[339208682,1727327447175,-3000.0,0.0001604,2]
[339208683,1727327447185,-1007.63296364,0.00016049,2]
[339208684,1727327447195,-3000.0,0.0001605,2]
[339208685,1727327447204,-500.0,0.0001606,2]
[339208686,1727327447214,-500.0,0.0001606,2]
[339208687,1727327447223,-500.0,0.0001606,2]
[339208688,1727327447233,-500.0,0.0001606,2]
[339208689,1727327447243,-500.0,0.0001606,2]
[339208690,1727327447253,-500.0,0.0001606,2]
[339208691,1727327447262,-500.0,0.0001606,2]
[339208692,1727327447272,-500.0,0.0001606,2]
[339208693,1727327447283,-372.28228269,0.0001606,2]
[339208694,1727327447293,-395.0,0.0001606,2]
[339208695,1727327447302,-3000.0,0.0001606,2]
[339208696,1727327447311,-3000.0,0.0001607,2]
[339208697,1727327447321,-190.504285,0.0001607,2]
[339208698,1727327447330,-151.0,0.0001607,2]
[339208699,1727327447339,-151.0,0.0001607,2]
[339208700,1727327447348,-151.0,0.0001607,2]
[339208701,1727327447358,-297.421117,0.0001607,2]
[339208702,1727327447368,-181.362349,0.0001607,2]
[339208703,1727327447377,-181.362349,0.0001607,2]
[339208704,1727327447386,-151.0,0.0001607,2]
[339208705,1727327447400,-151.0,0.0001607,2]
[339208706,1727327447409,-1128.310387,0.0001607,2]
[339208707,1727327447419,-1128.310387,0.0001607,2]
[339208708,1727327447428,-272.43557137,0.00016072,2]
[339208709,1727327447438,-500.7681412,0.00016073,2]
[339208710,1727327447447,-8695.28342389,0.00016078,2]
[339208711,1727327447457,-151.0,0.00016079,2]
[339208712,1727327447466,-500.0,0.00016079,2]
[339208713,1727327447475,-500.0,0.00016079,2]
[339208714,1727327447485,-321.23445009,0.00016079,2]
[339208715,1727327447495,-162.27657662,0.00016079,2]
[339208716,1727327447664,-500.0,0.00016079,2]
[339208717,1727327447675,-500.0,0.00016079,2]
[339208718,1727327447684,-181.89341941,0.00016079,2]
[339208719,1727327447694,-500.0,0.00016079,2]
[339208720,1727327447704,-155.40135468,0.00016079,2]
[339208721,1727327447714,-500.0,0.00016079,2]
[339208722,1727327447724,-500.0,0.00016079,2]
[339208723,1727327447735,-500.0,0.00016079,2]
[339208724,1727327447744,-151.289,0.0001608,2]
[339208725,1727327447754,-153.513079,0.0001608,2]
[339208726,1727327447763,-3000.0,0.0001608,2]
[339208727,1727327447773,-151.0,0.0001608,2]
[339208728,1727327447782,-151.0,0.0001608,2]
[339208729,1727327447802,-151.0,0.0001608,2]
[339208730,1727327447812,-151.0,0.0001608,2]
[339208731,1727327447822,-181.362349,0.0001608,2]
[339208732,1727327447832,-181.362349,0.0001608,2]
[339208733,1727327447842,-151.0,0.0001608,2]
[339208734,1727327447853,-151.0,0.0001608,2]
[339208735,1727327447862,-1128.310387,0.0001608,2]
[339208736,1727327447871,-1128.310387,0.0001608,2]
[339208737,1727327447881,-396.389713,0.0001608,2]
[339208738,1727327447890,-396.389713,0.0001608,2]
[339208739,1727327447899,-301.165474,0.0001608,2]
[339208740,1727327447908,-151.0,0.0001608,2]
[339208741,1727327447918,-53965.4671912,0.0001608,2]
[339208742,1727327447927,-26580.34120034,0.0001608,2]
[339208781,1727328509896,500.0,0.00021999,120]
[339208782,1727328510170,500.0,0.00021999,120]
[339208783,1727328510503,500.0,0.00021999,120]
[339208784,1727328510764,500.0,0.00021999,120]
[339208785,1727328511036,500.0,0.00021999,120]
[339208786,1727328511361,500.0,0.00021999,120]
[339208787,1727328511646,500.0,0.00021999,120]
[339208788,1727328511934,500.0,0.00021999,120]
[339208789,1727328512242,500.0,0.00021999,120]
[339208790,1727328512528,500.0,0.00021999,120]
[339208792,1727328512802,500.0,0.00021999,120]
[339208793,1727328513154,500.0,0.00021999,120]
[339208794,1727328513476,500.0,0.00021999,120]
[339208795,1727328513759,500.0,0.00021999,120]
[339208796,1727328514072,500.0,0.00021999,120]
[339208797,1727328514364,500.0,0.00021999,120]
[339208798,1727328514644,500.0,0.00021999,120]
[339208799,1727328514978,500.0,0.00021999,120]
[339208800,1727328515257,500.0,0.00021999,120]
[339208801,1727328515533,632.03192991,0.00021999,120]
[339208803,1727328575759,156.16,0.0001411,2]
[339208899,1727328639902,-269.2098528,0.00015032,2]
[339208901,1727328639912,-164.7342401,0.00015109,2]
[339208903,1727328639921,-4944.75414636,0.00015665,2]
[339208905,1727328639930,-2791.93610598,0.0001597,2]
[339208907,1727328639940,-300.0,0.0001599,2]
[339208909,1727328639949,-300.0,0.0001599,2]
[339208911,1727328639958,-1000.0,0.0001599,2]
[339208913,1727328639967,-150.0,0.00015993,2]
[339208915,1727328639977,-525.0,0.00015993,2]
[339208917,1727328639986,-1217.0,0.00015993,2]
[339208919,1727328639995,-500.0,0.00015999,2]
[339208922,1727328640005,-3000.0,0.00016,2]
[339208923,1727328640014,-1126.2,0.00016,30]
[339208925,1727328640023,-3000.0,0.0001601,2]
[339208927,1727328640034,-3000.0,0.0001602,2]
[339208929,1727328640043,-3000.0,0.0001603,2]
[339208931,1727328640053,-3000.0,0.0001604,2]
[339208933,1727328640062,-3000.0,0.0001605,2]
[339208935,1727328640071,-3000.0,0.0001606,2]
[339208937,1727328640080,-3000.0,0.0001607,2]
[339208939,1727328640090,-501.39041694,0.00016073,2]
[339208941,1727328640099,-259.76233298,0.00016077,2]
[339208943,1727328640108,-227.31710341,0.00016079,2]
[339208945,1727328640117,-6049.59526033,0.00016079,2]
[339208947,1727328640126,-159.49,0.00016079,2]
[339208949,1727328640135,-3000.0,0.0001608,2]
[339208951,1727328640145,-1060.3420801,0.0001608,2]
[339208992,1727328643048,-13884.22614517,0.0001608,2]
[339208999,1727328645799,-62.1777285,0.0001608,2]
[339209004,1727328875533,500.0,0.00021999,120]
[339209005,1727328904239,307.18329367,0.00021999,120]
[339209006,1727329006733,500.0,0.00021999,120]
[339209007,1727329007089,500.0,0.00021999,120]
[339209008,1727329007391,500.0,0.00021999,120]
[339209009,1727329007681,500.0,0.00021999,120]
[339209010,1727329007992,500.0,0.00021999,120]
[339209011,1727329008275,492.20030062,0.00021999,120]
[339209020,1727329117995,500.0,0.00021999,120]
[339209021,1727329118203,500.0,0.00021999,120]
[339209022,1727329118601,500.0,0.00021999,120]
[339209023,1727329118892,500.0,0.00021999,120]
[339209024,1727329119235,500.0,0.00021999,120]
[339209025,1727329119536,500.0,0.00021999,120]
[339209026,1727329119847,500.0,0.00021999,120]
[339209027,1727329120123,500.0,0.00021999,120]
[339209028,1727329120426,500.0,0.00021999,120]
[339209029,1727329120730,500.0,0.00021999,120]
[339209035,1727329583843,500.54555805,0.00021999,120]
[339209080,1727329832012,-238.5937917,0.00014984,2]
[339209082,1727329832022,-2196.9262083,0.00015012,2]
[339209147,1727329838486,-224.8837917,0.00015012,2]
[339209148,1727329838495,-1054.84264446,0.00015799,2]
[339209149,1727329838508,-1956.66369358,0.00015799,2]
[339209150,1727329838521,-596.29,0.00015799,2]
[339209201,1727330755141,-202.363713,0.00014996,2]
[339209203,1727330812900,500.0,0.00021999,120]
[339209204,1727330813522,529.45081205,0.00021999,120]
[339209212,1727330848747,-36.230077,0.00014996,2]
[339209214,1727330911521,537.94570901,0.00021999,120]
[339209215,1727330961088,345.49129824,0.00021999,120]
[339209216,1727330970703,-160.0,0.00015472,3]
[339209217,1727330970867,-1344.89499132,0.00015481,2]
[339209218,1727330992465,158.578202,0.00015132,2]
[339209219,1727330992692,158.578202,0.00015231,2]
[339209220,1727330992947,158.578202,0.00015329,2]
[339209221,1727330993149,158.578202,0.00015428,2]
[339209382,1727331090334,290.78083273,0.00021999,120]
[339209384,1727331095631,406.61,0.00010959,2]
[339209385,1727331106566,201.95212368,0.00010959,2]
[339209386,1727331106588,136.88787632,0.00010959,2]
[339209387,1727331117298,49.80632298,0.00010959,2]
[339209388,1727331117321,232.56367702,0.00010959,2]
[339209389,1727331128071,235.31,0.00010959,2]
[339209390,1727331139001,196.09,0.00010959,2]
[339209391,1727331149576,163.41,0.00010959,2]
[339209392,1727331160124,817.05,0.00010959,2]
[339209394,1727331388867,390.54424445,0.00021999,120]
[339209424,1727332029158,-1692.46113492,0.00014765,2]
[339209476,1727332232325,-665.92491418,0.00014765,2]
[339209479,1727332232335,-158.207007,0.00014854,2]
[339209480,1727332232344,-158.207007,0.00014919,2]
[339209483,1727332232353,-158.207007,0.00014983,2]
[339209484,1727332232362,-158.207007,0.00015048,2]
[339209486,1727332232371,-158.207007,0.00015112,2]
[339209488,1727332232381,-158.207007,0.00015177,2]
[339209490,1727332232391,-158.207007,0.00015241,2]
[339209492,1727332232400,-158.207007,0.00015306,2]
[339209495,1727332232410,-158.207007,0.0001537,2]
[339209497,1727332232421,-209.0875088,0.000154,2]
[339209499,1727332232430,-153.0,0.000154,2]
[339209501,1727332232439,-153.0,0.000154,2]
[339209503,1727332232452,-155.7534617,0.000154,2]
[339209505,1727332232461,-418.1750176,0.000154,2]
[339209507,1727332232470,-178.751256,0.000154,2]
[339209509,1727332232479,-153.0,0.000154,2]
[339209511,1727332232488,-158.207007,0.00015435,2]
[339209513,1727332232498,-158.207007,0.00015499,2]
[339209514,1727332232507,-158.207007,0.00015564,2]
[339209516,1727332232516,-300.0,0.00015621,2]
[339209517,1727332232526,-300.0,0.00015621,2]
[339209518,1727332232535,-158.207007,0.00015628,2]
[339209519,1727332232544,-160.0,0.00015712,4]
[339209520,1727332232554,-601.77467619,0.00015725,2]
[339209521,1727332232563,-153.0,0.000159,2]
[339209522,1727332232572,-717.31494957,0.00015922,2]
[339209523,1727332232591,-499.68505043,0.00015922,2]
[339209524,1727332232601,-150.16,0.00015922,2]
[339209525,1727332232611,-525.613,0.00015922,2]
[339209526,1727332232620,-202.51880989,0.0001593,2]
[339209527,1727332232632,-160.0,0.00015951,5]
[339209528,1727332232643,-202.51880989,0.00015963,2]
[339209529,1727332232653,-768.65704814,0.00015969,2]
[339209573,1727332238697,-196.43896982,0.000153,2]
[339209575,1727332238707,-231.34295186,0.00015969,2]
[339209576,1727332238716,-202.51880989,0.00015995,2]
[339209578,1727332238725,-3000.0,0.00016,30]
[339209580,1727332238734,-258.89926843,0.00016,2]
[339209593,1727332238844,-500.0,0.00016,2]
[339209660,1727332243609,-2241.10073157,0.00016,2]
[339209662,1727332243619,-356.750742,0.00016,2]
[339209664,1727332243628,-356.750742,0.00016,2]
[339209665,1727332243639,-151.0,0.00016,2]
[339209666,1727332243649,-151.0,0.00016,2]
[339209667,1727332243658,-193.768137,0.00016,2]
[339209668,1727332243668,-902.64831,0.00016,2]
[339209669,1727332243678,-151.0,0.00016,2]
[339209670,1727332243686,-151.0,0.00016,2]
[339209671,1727332243695,-151.0,0.00016,2]
[339209672,1727332243704,-151.0,0.00016,2]
[339209673,1727332243714,-151.0,0.00016,2]
[339209674,1727332243723,-170.048292,0.00016,2]
[339209675,1727332243735,-170.048292,0.00016,2]
[339209676,1727332243745,-170.048292,0.00016,2]
[339209677,1727332243754,-170.048292,0.00016,2]
[339209678,1727332243763,-151.0,0.00016,2]
[339209679,1727332243773,-151.0,0.00016,2]
[339209680,1727332243782,-151.0,0.00016,2]
[339209681,1727332243791,-151.0,0.00016,2]
[339209682,1727332243800,-176.981544,0.0001601,2]
[339209683,1727332243809,-3000.0,0.0001601,30]
[339209684,1727332243820,-3000.0,0.0001601,2]
[339209685,1727332243829,-356.750742,0.0001601,2]
[339209686,1727332243838,-356.750742,0.0001601,2]
[339209687,1727332243848,-356.750742,0.0001601,2]
[339209688,1727332243858,-356.750742,0.0001601,2]
[339209689,1727332243867,-356.750742,0.0001601,2]
[339209690,1727332243876,-356.750742,0.0001601,2]
[339209691,1727332243886,-356.750742,0.0001601,2]
[339209692,1727332243895,-356.750742,0.0001601,2]
[339209693,1727332243904,-151.0,0.0001601,2]
[339209694,1727332243913,-151.0,0.0001601,2]
[339209695,1727332243923,-151.0,0.0001601,2]
[339209696,1727332243932,-151.0,0.0001601,2]
[339209697,1727332243941,-151.0,0.0001601,2]
[339209698,1727332243950,-151.0,0.0001601,2]
[339209699,1727332243960,-151.0,0.0001601,2]
[339209700,1727332243970,-902.64831,0.0001601,2]
[339209701,1727332243979,-902.64831,0.0001601,2]
[339209702,1727332243988,-902.64831,0.0001601,2]
[339209703,1727332243997,-902.64831,0.0001601,2]
[339209704,1727332244007,-151.0,0.0001601,2]
[339209705,1727332244016,-151.0,0.0001601,2]
[339209706,1727332244026,-151.0,0.0001601,2]
[339209707,1727332244035,-151.0,0.0001601,2]
[339209708,1727332244044,-269.512855,0.0001601,2]
[339209709,1727332244053,-151.0,0.0001601,2]
[339209710,1727332244062,-217.905378,0.0001601,2]
[339209711,1727332244071,-151.0,0.0001601,2]
[339209712,1727332244080,-151.0,0.0001601,2]
[339209713,1727332244089,-151.0,0.0001601,2]
[339209714,1727332244099,-241.746716,0.0001601,2]
[339209715,1727332244111,-170.048292,0.0001601,2]
[339209716,1727332244120,-170.048292,0.0001601,2]
[339209717,1727332244130,-170.048292,0.0001601,2]
[339209718,1727332244140,-170.048292,0.0001601,2]
[339209719,1727332244152,-170.048292,0.0001601,2]
[339209720,1727332244161,-170.048292,0.0001601,2]
[339209721,1727332244171,-170.048292,0.0001601,2]
[339209722,1727332244180,-170.048292,0.0001601,2]
[339209723,1727332244189,-170.048292,0.0001601,2]
[339209724,1727332244199,-170.048292,0.0001601,2]
[339209725,1727332244209,-151.0,0.0001601,2]
[339209726,1727332244218,-151.0,0.0001601,2]
[339209727,1727332244227,-151.0,0.0001601,2]
[339209728,1727332244236,-151.0,0.0001601,2]
[339209729,1727332244245,-151.0,0.0001601,2]
[339209730,1727332244255,-267.553827,0.0001601,2]
[339209731,1727332244264,-3000.0,0.0001602,30]
[339209732,1727332244273,-3000.0,0.0001602,2]
[339209733,1727332244282,-17.64494286,0.0001602,2]
[339209740,1727332246611,-188.05123721,0.0001602,2]
[339209746,1727333150156,-335.66330493,0.00014979,2]
[339209748,1727333237098,-16.30641317,0.00014979,2]
[339209749,1727333237120,-542.60027455,0.00015852,2]
[339209751,1727333362749,500.0,0.00021999,120]
[339209752,1727333362999,538.60883722,0.00021999,120]
[339209851,1727333443626,-457.39972545,0.00015852,2]
[339209852,1727333443638,-1000.0,0.00015872,2]
[339209853,1727333443648,-150.0,0.00015886,2]
[339209854,1727333443657,-525.0,0.00015886,2]
[339209855,1727333443667,-1217.0,0.00015886,2]
[339209856,1727333443676,-196.64512093,0.00015919,2]
[339209857,1727333443686,-196.64512092,0.00015955,2]
[339209858,1727333443695,-1000.0,0.0001597,2]
[339209859,1727333443705,-196.64512092,0.0001599,2]
[339209860,1727333443716,-300.0,0.00015999,2]
[339209861,1727333443726,-300.0,0.00015999,2]
[339209862,1727333443737,-3000.0,0.00016,30]
[339209863,1727333443747,-3000.0,0.00016,2]
[339209864,1727333443757,-168.090562,0.00016,2]
[339209865,1727333443766,-168.090562,0.00016,2]
[339209866,1727333443776,-151.0,0.00016,2]
[339209867,1727333443787,-151.0,0.00016,2]
[339209868,1727333443797,-151.0,0.00016,2]
[339209869,1727333443806,-676.986232,0.00016,2]
[339209870,1727333443816,-676.986232,0.00016,2]
[339209871,1727333443826,-151.0,0.00016,2]
[339209872,1727333443836,-151.0,0.00016,2]
[339209873,1727333443844,-151.0,0.00016,2]
[339209874,1727333443853,-151.0,0.00016,2]
[339209875,1727333443863,-151.0,0.00016,2]
[339209876,1727333443872,-151.0,0.00016,2]
[339209877,1727333443882,-151.0,0.00016,2]
[339209878,1727333443891,-151.0,0.00016,2]
[339209879,1727333443901,-151.0,0.00016,2]
[339209880,1727333443911,-151.0,0.00016,2]
[339209881,1727333443922,-151.0,0.00016,2]
[339209882,1727333443933,-20098.85536772,0.00016,2]
[339209883,1727333443942,-190.504285,0.0001601,2]
[339209884,1727333443953,-3000.0,0.0001601,30]
[339209885,1727333443963,-3000.0,0.0001601,2]
[339209886,1727333443972,-168.090562,0.0001601,2]
[339209887,1727333443982,-168.090562,0.0001601,2]
[339209888,1727333443993,-168.090562,0.0001601,2]
[339209889,1727333444002,-168.090562,0.0001601,2]
[339209890,1727333444012,-151.0,0.0001601,2]
[339209891,1727333444021,-151.0,0.0001601,2]
[339209892,1727333444030,-151.0,0.0001601,2]
[339209893,1727333444040,-151.0,0.0001601,2]
[339209894,1727333444050,-170.681213,0.0001601,2]
[339209895,1727333444060,-676.986232,0.0001601,2]
[339209896,1727333444070,-676.986232,0.0001601,2]
[339209897,1727333444080,-676.986232,0.0001601,2]
[339209898,1727333444089,-676.986232,0.0001601,2]
[339209899,1727333444099,-676.986232,0.0001601,2]
[339209900,1727333444108,-676.986232,0.0001601,2]
[339209901,1727333444118,-676.986232,0.0001601,2]
[339209902,1727333444128,-676.986232,0.0001601,2]
[339209903,1727333444138,-151.0,0.0001601,2]
[339209904,1727333444147,-151.0,0.0001601,2]
[339209905,1727333444157,-151.0,0.0001601,2]
[339209906,1727333444167,-151.0,0.0001601,2]
[339209907,1727333444176,-183.797592,0.0001601,2]
[339209908,1727333444185,-150.01,0.00016019,2]
[339209909,1727333444195,-3020.74221156,0.00016019,2]
[339209910,1727333444205,-168.090562,0.00016019,2]
[339209911,1727333444215,-265.289758,0.00016019,2]
[339209912,1727333444224,-676.986232,0.00016019,2]
[339209913,1727333444235,-676.986232,0.00016019,2]
[339209914,1727333444245,-151.0,0.00016019,2]
[339209915,1727333444255,-151.0,0.00016019,2]
[339209916,1727333444264,-3000.0,0.0001602,30]
[339209917,1727333444274,-3000.0,0.0001602,2]
[339209918,1727333444284,-168.090562,0.0001602,2]
[339209919,1727333444293,-168.090562,0.0001602,2]
[339209920,1727333444303,-168.090562,0.0001602,2]
[339209921,1727333444312,-168.090562,0.0001602,2]
[339209922,1727333444480,-168.090557,0.0001602,2]
[339209923,1727333444494,-676.986232,0.0001602,2]
[339209924,1727333444507,-676.986232,0.0001602,2]
[339209925,1727333444517,-676.986232,0.0001602,2]
[339209926,1727333444527,-676.986232,0.0001602,2]
[339209927,1727333444537,-676.986232,0.0001602,2]
[339209928,1727333444549,-676.986232,0.0001602,2]
[339209929,1727333444559,-676.986232,0.0001602,2]
[339209930,1727333444569,-676.986239,0.0001602,2]
[339209931,1727333444580,-151.0,0.0001602,2]
[339209932,1727333444590,-3000.0,0.0001603,30]
[339209933,1727333444600,-3000.0,0.0001603,2]
[339209934,1727333444610,-3000.0,0.0001604,30]
[339209935,1727333444619,-3000.0,0.0001604,2]
[339209936,1727333444628,-3000.0,0.0001605,30]
[339209937,1727333444638,-3000.0,0.0001605,2]
[339209938,1727333444647,-1000.0,0.00016059,2]
[339209939,1727333444656,-477.32539358,0.00016059,2]
[339209940,1727333444666,-500.0,0.00016059,2]
[339209941,1727333444676,-500.0,0.00016059,2]
[339209942,1727333444685,-417.74967515,0.00016059,2]
[339209943,1727333444695,-500.0,0.00016059,2]
[339209944,1727333444704,-500.0,0.00016059,2]
[339209945,1727333444713,-500.0,0.00016059,2]
[339209946,1727333444722,-217.24280166,0.00016059,2]
[339209947,1727333444731,-500.0,0.00016059,2]
[339209948,1727333444752,-3000.0,0.0001606,30]
[339209949,1727333444762,-3000.0,0.0001606,2]
[339209950,1727333444771,-57602.7891892,0.0001606,2]
[339209951,1727333444783,-40911.6393479,0.0001606,2]
[339209952,1727333444794,-3000.0,0.0001607,30]
[339209953,1727333444806,-3000.0,0.0001607,2]
[339209954,1727333444816,-159.49,0.00016072,2]
[339209955,1727333444827,-544.89688149,0.00016073,2]
[339209956,1727333444838,-501.81496596,0.00016073,2]
[339209957,1727333444854,-500.0,0.00016073,2]
[339209958,1727333444863,-3000.0,0.0001608,30]
[339209959,1727333444872,-3000.0,0.0001608,2]
[339209960,1727333444882,-607.16321541,0.00016089,2]
[339209961,1727333444891,-2547.05452623,0.0001609,2]
[339209962,1727333444900,-3000.0,0.0001609,30]
[339209963,1727333444910,-3000.0,0.0001609,2]
[339209964,1727333444919,-38768.26214557,0.0001609,2]
[339209979,1727334201881,500.0,0.00021999,120]
[339209980,1727334202180,501.62511069,0.00021999,120]
[339209981,1727334330249,-355.88495409,0.00015752,2]
[339209982,1727334330276,-355.88495409,0.00015752,2]
[339209984,1727334439101,-995.24574698,0.00015752,2]
[339209989,1727334611565,186.69,0.00010959,2]
[339210057,1727334638484,-284.82829781,0.00015752,2]
[339210128,1727334673324,359.5,0.00010959,2]
[339210130,1727334736054,278017.42049604,0.00021,60]
[339210131,1727334890947,500.0,0.00021999,120]
[339210132,1727334891218,500.0,0.00021999,120]
[339210133,1727334891511,500.0,0.00021999,120]
[339210134,1727334891796,500.0,0.00021999,120]
[339210135,1727334892070,500.0,0.00021999,120]
[339210136,1727334892357,507.6612264,0.00021999,120]
[339210151,1727335639131,-202.363713,0.00014748,2]
[339210152,1727335639165,-508.15604703,0.0001492,2]
[339210153,1727335639189,-1410.14514619,0.0001502,2]
[339210189,1727335832092,-273.51806891,0.0001502,2]
[339210191,1727335832101,-165.49763,0.00015109,2]
[339210193,1727335832111,-165.49763,0.00015188,2]
[339210195,1727335832120,-165.49763,0.00015267,2]
[339210197,1727335832130,-165.49763,0.00015345,2]
[339210199,1727335832142,-300.0,0.00015377,2]
[339210201,1727335832151,-300.0,0.00015377,2]
[339210203,1727335832160,-412.0989743,0.00015378,2]
[339210205,1727335832169,-824.1979486,0.00015378,2]
[339210207,1727335832178,-153.0,0.00015378,2]
[339210209,1727335832188,-3.10318819,0.00015378,2]
[339210211,1727335832200,-149.89681181,0.00015378,2]
[339210213,1727335832209,-153.0,0.00015378,2]
[339210215,1727335832218,-412.0989743,0.00015378,2]
[339210217,1727335832228,-85.59828105,0.000154,2]
[339210259,1727335838694,-67.40171895,0.000154,2]
[339210260,1727335838705,-153.0,0.000154,2]
[339210261,1727335838715,-412.0989743,0.000154,2]
[339210262,1727335838726,-165.49763,0.00015424,2]
[339210264,1727335838735,-202.50174975,0.000155,2]
[339210273,1727335840117,-209.59722455,0.000155,2]
[339210274,1727335840127,-302.77709234,0.000155,2]
[339210287,1727335843375,-0.50104747,0.000155,2]
[339210290,1727335843391,-108.82083449,0.000155,2]
[339210291,1727335843402,-163.5806244,0.000155,2]
[339210293,1727335843413,-153.2791696,0.000155,2]
[339210294,1727335843423,-209.1374178,0.000155,2]
[339210295,1727335843434,-81.71958807,0.000155,2]
[339210310,1727335846266,-127.41782973,0.000155,2]
[339210311,1727335846275,-108.21160429,0.000155,2]
[339210369,1727336740151,-165.49763,0.00014982,2]
[339210370,1727336740175,-165.49763,0.00015139,2]
[339210371,1727336740199,-134.80109434,0.00015295,2]
[339210389,1727336837453,-30.69653566,0.00015295,2]
[339210390,1727336837478,-165.49763,0.00015451,2]
[339210391,1727336837500,-165.49763,0.00015607,2]
[339210392,1727336837522,-300.0,0.00015699,2]
[339210393,1727336837544,-17.42294268,0.00015699,2]
[339210411,1727337006573,240.34,0.00021,60]
[339210476,1727337032367,-335.663305,0.00014939,2]
[339210478,1727337032378,-1333.80927963,0.000156,2]
[339210573,1727337040340,-7499.97471283,0.000156,2]
[339210574,1727337040351,-300.0,0.00015698,2]
[339210575,1727337040361,-300.0,0.00015698,2]
[339210576,1727337040370,-306.9901874,0.000157,2]
[339210578,1727337040380,-412.0989743,0.000157,2]
[339210580,1727337040389,-153.0,0.000157,2]
[339210581,1727337040398,-412.0989743,0.000157,2]
[339210584,1727337040409,-197.7883957,0.000157,2]
[339210585,1727337040419,-412.0989743,0.000157,2]
[339210586,1727337040430,-226.290528,0.000157,2]
[339210587,1727337040439,-412.0989743,0.000157,2]
[339210588,1727337040449,-209.1374178,0.000157,2]
[339210589,1727337040459,-412.0989743,0.000157,2]
[339210590,1727337040469,-208.8878728,0.000157,2]
[339210591,1727337040482,-85.52962787,0.000157,2]
[339210592,1727337040495,-326.56934643,0.000157,2]
[339210593,1727337040505,-119.94989997,0.00015752,2]
[339210594,1727337040516,-380.05010003,0.00015752,2]
[339210595,1727337040526,-165.49763,0.00015763,2]
[339210596,1727337040535,-140.14319597,0.0001577,2]
[339210597,1727337040548,-9.85680403,0.0001577,2]
[339210598,1727337040560,-525.0,0.0001577,2]
[339210599,1727337040569,-1217.0,0.0001577,2]
[339210600,1727337040579,-2562.82640355,0.00015928,2]
[339210601,1727337040589,-1000.0,0.0001599,2]
[339210602,1727337040599,-1903.19679242,0.00016,2]
[339210603,1727337040611,-589.29,0.00016,2]
[339210638,1727337046589,-75.45719315,0.00016,2]
[339210643,1727337412602,150.0,0.000141,90]
[339210647,1727337691896,200.0,0.00021176,120]
[339210648,1727337692107,-1000.0,0.00016,7]
[339210649,1727337694009,-444.18240193,0.00016,7]
[339210650,1727337735876,-655.987854,0.00015008,2]
[339210651,1727337735902,-100.012146,0.0001582,2]
[339210652,1727337741559,-49.987854,0.0001582,2]
[339210653,1727337741584,-525.0,0.0001582,2]
[339210654,1727337741615,-1217.0,0.0001582,2]
[339210655,1727337741640,-208.012146,0.0001589,2]
[339210656,1727337742405,-2000.0,0.0001589,2]
[339210657,1727337743269,-291.987854,0.0001589,2]
[339210658,1727337743297,-300.0,0.00015918,2]
[339210659,1727337743324,-300.0,0.00015989,2]
[339210660,1727337743351,-837.04818854,0.0001599,2]
[339210661,1727337743377,-150.01,0.00015999,2]
[339210662,1727337743404,-120.95395746,0.00015999,2]
[339210663,1727337744579,-2000.0,0.00016,2]
[339210664,1727337746413,-2000.0,0.00016,2]